bitfinex/quotes_SOLUSD_20251130
["timestamp","ask_amount","ask_price","bid_price","bid_amount"]
[1764490909968,3.99522619,136.8,136.77,63.49]
[1764490910890,3.33522619,136.8,136.78,0.69]
[1764490911776,0.1,136.8,136.78,0.69]
[1764490911960,3.33522619,136.8,136.78,0.69]
[1764490913385,0.1,136.8,136.78,0.69]
[1764490913579,3.33522619,136.8,136.78,0.69]
[1764490914596,0.1,136.8,136.78,8.00099668]
[1764490914975,0.1,136.8,136.79,0.69]
[1764490915794,0.1,136.8,136.79,8.00047591]
[1764490918100,0.1,136.8,136.79,72.87162628]
[1764490918396,0.1,136.8,136.79,70.80047591]
[1764490919479,0.1,136.8,136.79,72.87162628]
[1764490920188,0.1,136.8,136.79,76.09162628]
[1764490922199,0.1,136.8,136.79,92.40049028]
[1764490935508,1e-08,136.8,136.79,76.09162628]
[1764490935707,0.1,136.82,136.8,62.79999999]
[1764490936001,0.1,136.82,136.81,5.29115037]
[1764490936211,0.1,136.82,136.81,85.09001436]
[1764490936785,0.1,136.84,136.83,16.308864]
[1764490936989,0.1,136.84,136.83,21.60001437]
[1764490937286,0.1,136.84,136.83,22.29001437]
[1764490937482,0.1,136.84,136.83,29.59835318]
[1764490942016,0.1,136.84,136.83,92.39835317]
[1764490942183,0.1,136.84,136.83,89.17835317]
[1764490942387,0.1,136.84,136.83,92.39835317]
[1764490942886,0.1,136.84,136.83,89.6372028]
[1764490946412,0.1,136.84,136.83,86.4172028]
[1764490946787,0.76,136.84,136.83,86.4172028]
[1764490947494,0.1,136.84,136.83,86.4172028]
[1764490948203,0.1,136.84,136.83,136.4172028]
[1764490950822,0.1,136.84,136.83,120.1083388]
[1764490952215,0.1,136.84,136.83,112.79999999]
[1764490952216,0.76,136.84,136.83,112.79999999]
[1764490954318,0.1,136.84,136.83,112.79999999]
[1764490956598,0.76,136.84,136.83,112.79999999]
[1764490956821,8.06780473,136.84,136.83,50.0]
[1764490957120,10.1389551,136.84,136.83,50.0]
[1764490958529,8.06780473,136.84,136.83,50.0]
[1764490959523,10.1389551,136.84,136.83,50.0]
[1764490959908,19.23322316,136.84,136.83,50.0]
[1764490961723,41.20400202,136.84,136.83,50.0]
[1764490963028,19.23322316,136.84,136.83,50.0]
[1764490964128,41.20400202,136.84,136.83,50.0]
[1764490970235,41.20400202,136.84,136.77,0.72]
[1764490970236,9.09426806,136.83,136.77,0.72]
[1764490970439,9.09426806,136.81,136.77,0.72]
[1764490970731,2.07115037,136.8,136.77,0.72]
[1764490971611,2.73115037,136.8,136.77,0.72]
[1764490972126,7.31047591,136.79,136.77,0.72]
[1764490973926,10.04162628,136.79,136.76,63.52]
[1764490974626,10.54751184,136.79,136.76,62.8]
[1764490974832,11.20718887,136.8,136.77,0.72]
[1764490975133,7.30982195,136.81,136.77,0.72]
[1764490975434,13.76685788,136.81,136.77,0.72]
[1764490976010,3.23703593,136.79,136.76,0.65]
[1764490976219,3.23703593,136.78,136.75,16.958864]
[1764490976829,3.23703593,136.78,136.76,0.65]
[1764490977233,10.54806604,136.78,136.76,0.65]
[1764490978923,7.31103011,136.78,136.76,0.65]
[1764490981343,3.89703593,136.77,136.74,0.65]
[1764490981635,3.89703593,136.77,136.74,63.45]
[1764490981816,3.23703593,136.77,136.74,63.45]
[1764490982015,3.23703593,136.77,136.75,0.65]
[1764490982732,10.53103011,136.78,136.75,0.65]
[1764490986333,7.31103011,136.78,136.75,63.45]
[1764490986709,7.31103011,136.78,136.76,0.65]
[1764490989945,7.31047591,136.79,136.76,7.96198377]
[1764490990147,10.53047591,136.79,136.76,0.65]
[1764490990330,3.22,136.79,136.76,0.65]
[1764490992346,3.22,136.79,136.76,70.76199484]
[1764490992646,7.31016576,136.8,136.76,70.76199484]
[1764490992843,10.53016576,136.8,136.77,0.65]
[1764490997232,3.22,136.8,136.77,7.96140953]
[1764490997851,3.22,136.8,136.77,70.76140953]
[1764490998148,3.22,136.8,136.78,0.65]
[1764491001427,10.54661643,136.81,136.78,7.96092276]
[1764491001635,10.5295805,136.81,136.78,7.96092276]
[1764491001942,10.5295805,136.81,136.79,0.71]
[1764491004050,7.3095805,136.81,136.79,0.71]
[1764491004855,6.45703593,136.82,136.79,0.71]
[1764491005056,3.33703593,136.84,136.79,70.82038315]
[1764491005553,0.1,136.84,136.8,0.69]
[1764491005760,0.1,136.84,136.8,3.92703593]
[1764491006153,0.1,136.84,136.81,0.69]
[1764491006739,0.1,136.84,136.82,7.30887297]
[1764491007140,0.1,136.84,136.82,7.99887297]
[1764491007335,0.1,136.84,136.83,0.69]
[1764491014483,0.1,136.84,136.83,30.76423874]
[1764491018553,0.1,136.84,136.83,27.54423874]
[1764491018876,0.1,136.84,136.83,30.76423874]
[1764491020073,0.1,136.84,136.83,27.54423874]
[1764491020259,0.1,136.84,136.83,30.76423874]
[1764491022166,0.1,136.84,136.83,90.32720281]
[1764491022360,0.1,136.84,136.83,93.56423874]
[1764491023254,0.1,136.87,136.83,33.31127467]
[1764491023455,0.1,136.89,136.88,16.308864]
[1764491023670,0.1,136.89,136.88,23.45589993]
[1764491023862,0.1,136.89,136.88,20.218864]
[1764491024075,0.1,136.89,136.87,16.998864]
[1764491024269,4.02703593,136.89,136.85,3.61707914]
[1764491024765,0.79,136.89,136.86,0.69]
[1764491024964,4.02703593,136.89,136.86,0.69]
[1764491025856,0.79,136.89,136.86,7.99636363]
[1764491026055,0.1,136.89,136.86,7.99636363]
[1764491026262,0.1,136.89,136.87,0.69]
[1764491026866,0.1,136.89,136.88,22.76589993]
[1764491027369,0.1,136.89,136.88,23.45589993]
[1764491028278,0.1,136.89,136.88,30.76156912]
[1764491030282,0.1,136.89,136.88,93.56156912]
[1764491030778,0.1,136.89,136.88,102.65583718]
[1764491031185,0.1,136.89,136.88,99.41880125]
[1764491031375,0.1,136.89,136.88,102.65583718]
[1764491033370,1e-08,136.89,136.88,39.85583718]
[1764491033565,1e-08,136.9,136.89,9.09426806]
[1764491033770,1e-08,136.9,136.89,13.02130399]
[1764491033981,1e-08,136.9,136.89,34.98130399]
[1764491034188,1e-08,136.9,136.89,13.02130399]
[1764491034696,0.1,136.94,136.9,0.69]
[1764491034864,0.1,136.94,136.93,28.35584485]
[1764491035063,0.1,136.94,136.93,32.57016799]
[1764491035260,0.1,136.97,136.94,0.28432314]
[1764491035566,0.1,136.97,136.96,26.84730179]
[1764491035768,0.1,136.97,136.96,19.63270585]
[1764491036072,0.1,137.03,137.0,16.308864]
[1764491036271,0.1,137.03,137.01,3.24]
[1764491036478,0.1,137.03,136.96,34.36485145]
[1764491036479,0.8,137.03,136.99,19.548864]
[1764491036771,0.1,137.03,137.01,2.06398413]
[1764491036970,0.1,137.03,137.02,16.308864]
[1764491037177,3.51634985,137.11,137.05,16.308864]
[1764491037383,2.06398413,137.1,137.05,16.308864]
[1764491037573,3.51634985,137.11,137.04,12.60095421]
[1764491037794,19.82521385,137.11,137.04,16.308864]
[1764491037991,2.06398413,137.06,137.04,16.308864]
[1764491038181,0.28432314,137.09,137.04,16.308864]
[1764491038491,19.82521385,137.11,137.04,16.308864]
[1764491039180,19.82521385,137.11,137.05,0.67]
[1764491039384,19.82521385,137.11,137.06,19.568864]
[1764491039385,3.51634985,137.11,137.06,19.568864]
[1764491039589,1.28634985,137.11,137.1,18.37284813]
[1764491039781,0.7,137.21,137.1,30.44279305]
[1764491040096,0.7,137.21,137.14,2.06398413]
[1764491040399,7.98837733,137.21,137.14,19.568864]
[1764491040871,2.06398413,137.17,137.14,16.308864]
[1764491041069,0.7,137.2,137.12,3.26]
[1764491041270,0.7,137.19,137.12,3.26]
[1764491041477,2.06398413,137.16,137.12,3.26]
[1764491041674,2.06398413,137.15,137.11,63.74474465]
[1764491041878,0.7,137.18,137.14,16.308864]
[1764491042073,2.06398413,137.17,137.12,8.80994492]
[1764491042299,2.06398413,137.15,137.11,45.51176835]
[1764491042481,0.7,137.17,137.11,38.21866863]
[1764491042682,0.7,137.17,137.11,16.308864]
[1764491042986,0.7,137.2,137.14,16.308864]
[1764491043195,0.7,137.23,137.15,16.308864]
[1764491043372,16.308864,137.24,137.15,16.308864]
[1764491043373,0.7,137.22,137.16,7.29075532]
[1764491043573,0.7,137.22,137.17,2.06398413]
[1764491043777,0.7,137.25,137.19,18.37284813]
[1764491043989,0.7,137.24,137.19,16.308864]
[1764491044302,0.7,137.27,137.21,16.308864]
[1764491044807,2.06398413,137.26,137.21,16.308864]
[1764491044970,7.9849368,137.27,137.19,18.65717127]
[1764491045170,7.9849368,137.27,137.2,5.32398413]
[1764491045373,2.06398413,137.25,137.21,7.28809853]
[1764491045587,2.06398413,137.23,137.15,8.80994492]
[1764491045787,12.76994492,137.25,137.14,16.308864]
[1764491046077,2.06398413,137.19,137.14,16.308864]
[1764491046270,2.06398413,137.19,137.13,5.32398413]
[1764491046271,0.7,137.24,137.16,16.308864]
[1764491046494,2.06398413,137.2,137.16,16.308864]
[1764491046992,0.7,137.22,137.17,5.32398413]
[1764491047396,0.7,137.22,137.18,7.28969237]
[1764491047697,7.28653142,137.24,137.18,10.54969237]
[1764491047991,7.98653142,137.24,137.18,10.54969237]
[1764491048178,0.7,137.24,137.19,2.06398413]
[1764491048495,0.7,137.24,137.18,12.6136765]
[1764491048700,7.9850937,137.27,137.18,45.36711044]
[1764491048895,2.76398413,137.26,137.19,2.34830727]
[1764491049088,2.76398413,137.26,137.19,0.28432314]
[1764491049288,2.06398413,137.24,137.18,47.14677143]
[1764491049487,2.06398413,137.23,137.18,45.0827873]
[1764491049688,0.7,137.24,137.18,48.3427873]
[1764491050205,2.06398413,137.22,137.18,22.828864]
[1764491050494,2.06398413,137.22,137.18,19.568864]
[1764491050694,0.7,137.21,137.18,19.568864]
[1764491051101,0.7,137.25,137.18,21.21031638]
[1764491051302,0.7,137.24,137.18,23.5984818]
[1764491051480,0.7,137.24,137.19,4.90145238]
[1764491052007,5.60145238,137.26,137.21,16.308864]
[1764491052387,0.7,137.25,137.21,23.59684168]
[1764491052591,5.60145238,137.25,137.21,16.308864]
[1764491053102,0.7,137.24,137.21,16.308864]
[1764491053609,4.90145238,137.23,137.2,16.308864]
[1764491053775,5.60145238,137.22,137.17,7.28626214]
[1764491053980,5.60145238,137.22,137.18,3.26]
[1764491054177,0.7,137.21,137.18,3.26]
[1764491054395,4.90145238,137.24,137.18,15.450655]
[1764491054594,4.90145238,137.23,137.18,3.26]
[1764491054800,5.60145238,137.23,137.18,3.26]
[1764491055085,0.7,137.22,137.18,3.26]
[1764491055495,4.90145238,137.21,137.18,3.26]
[1764491055801,5.60145238,137.22,137.18,3.26]
[1764491056007,0.7,137.21,137.18,3.26]
[1764491056406,8.80994492,137.26,137.18,3.26]
[1764491056407,0.7,137.26,137.21,16.308864]
[1764491056704,0.7,137.26,137.21,21.21031638]
[1764491057404,4.90145238,137.25,137.19,16.308864]
[1764491057603,4.90145238,137.23,137.17,15.44771452]
[1764491057988,0.7,137.22,137.17,22.73787578]
[1764491058305,0.7,137.22,137.17,39.04673978]
[1764491058495,0.7,137.22,137.18,4.90145238]
[1764491058691,0.7,137.22,137.17,34.1452874]
[1764491058885,0.7,137.22,137.18,4.90145238]
[1764491059603,0.7,137.22,137.17,39.04673978]
[1764491059998,0.7,137.22,137.17,34.1452874]
[1764491060197,7.98763244,137.22,137.17,31.75657852]
[1764491060400,0.7,137.22,137.18,7.28969237]
[1764491060596,0.7,137.21,137.18,7.28969237]
[1764491062109,7.98821984,137.21,137.17,19.568864]
[1764491062289,12.88967222,137.21,137.17,19.568864]
[1764491062480,0.7,137.2,137.17,19.568864]
[1764491063003,0.7,137.2,137.17,16.308864]
[1764491063306,4.90145238,137.19,137.15,10.54821984]
[1764491063507,7.28927847,137.19,137.15,3.26]
[1764491063693,0.72,137.18,137.15,3.26]
[1764491064084,0.72,137.18,137.15,10.55127778]
[1764491064285,0.72,137.18,137.15,3.26]
[1764491064483,5.62145238,137.18,137.14,7.29178545]
[1764491064683,5.62145238,137.18,137.12,18.2312196]
[1764491064684,4.90145238,137.17,137.13,10.55231299]
[1764491065007,5.62145238,137.17,137.13,10.55231299]
[1764491065189,0.72,137.16,137.13,10.55231299]
[1764491066012,4.90145238,137.15,137.1,18.23484156]
[1764491066211,8.0107957,137.16,137.1,18.23484156]
[1764491066212,4.90145238,137.14,137.11,3.26]
[1764491066510,0.66,137.15,137.11,3.26]
[1764491066917,5.56145238,137.15,137.11,3.26]
[1764491067094,12.85274683,137.15,137.11,10.55329559]
[1764491067296,0.66,137.15,137.12,4.90145238]
[1764491067495,0.66,137.15,137.11,15.45474797]
[1764491067698,0.66,137.15,137.11,10.55329559]
[1764491069810,7.95023739,137.17,137.11,33.68828308]
[1764491070009,7.95023739,137.17,137.12,4.90145238]
[1764491070199,0.66,137.19,137.14,4.90145238]
[1764491070393,0.66,137.19,137.14,3.26]
[1764491070717,0.66,137.19,137.08,7.29458164]
[1764491070915,0.66,137.19,137.11,38.22026888]
[1764491070916,4.90145238,137.15,137.11,38.22026888]
[1764491071110,4.90145238,137.14,137.11,16.308864]
[1764491071420,4.90145238,137.14,136.99,46.51211852]
[1764491071421,4.90145238,137.12,137.08,25.17620703]
[1764491071610,0.66,137.13,137.08,3.26]
[1764491072122,4.90145238,137.12,137.08,3.26]
[1764491072513,0.66,137.11,137.07,4.90145238]
[1764491073215,0.66,137.11,137.07,7.2950759]
[1764491074298,5.56145238,137.11,137.07,7.2950759]
[1764491074498,12.85491269,137.11,137.06,25.17780821]
[1764491074698,12.85491269,137.11,137.05,7.29639708]
[1764491074699,4.90145238,137.09,137.05,7.29639708]
[1764491074899,4.90145238,137.09,137.05,48.78627236]
[1764491075116,0.66,137.08,137.05,48.78627236]
[1764491075316,0.66,137.08,137.05,3.26]
[1764491075498,0.66,137.08,137.05,10.55419419]
[1764491076012,0.66,137.08,137.04,18.23302336]
[1764491076322,0.66,137.08,137.03,3.26]
[1764491076323,5.56145238,137.08,137.03,3.26]
[1764491076526,4.90145238,137.07,137.03,21.49433493]
[1764491076727,0.66,137.07,137.03,21.49433493]
[1764491076920,0.66,137.07,137.03,26.39578731]
[1764491077120,0.66,137.07,137.04,7.29713952]
[1764491077432,0.66,137.07,137.03,21.49433493]
[1764491077625,4.90145238,137.06,137.02,63.0]
[1764491077832,4.90145238,137.05,137.02,63.0]
[1764491077998,7.95555658,137.07,137.02,63.0]
[1764491077999,5.56145238,137.06,137.02,63.0]
[1764491078424,7.29555658,137.07,137.02,63.0]
[1764491078425,5.56145238,137.05,137.02,63.0]
[1764491078831,0.66,137.04,137.02,63.0]
[1764491079421,4.90145238,137.07,137.02,70.29805131]
[1764491079619,27.04506899,137.1,137.03,4.90145238]
[1764491079620,0.66,137.06,137.03,4.90145238]
[1764491079827,0.66,137.06,137.02,70.29805131]
[1764491080028,0.66,137.06,137.02,75.19950369]
[1764491080229,0.66,137.06,137.02,70.29805131]
[1764491081216,5.56145238,137.06,137.02,70.29805131]
[1764491081419,4.90145238,137.05,137.02,0.2]
[1764491081634,0.66,137.05,137.02,0.2]
[1764491081836,0.66,137.04,137.02,0.2]
[1764491082409,0.66,137.06,137.02,12.39935176]
[1764491082646,0.66,137.05,137.02,7.49789938]
[1764491083224,2.72315575,137.05,137.02,7.49789938]
[1764491083730,0.66,137.04,137.02,7.49789938]
[1764491085025,7.95648336,137.06,137.02,7.49789938]
[1764491085331,0.66,137.05,137.02,7.49789938]
[1764491087435,7.95529613,137.08,137.03,3.26]
[1764491087614,0.66,137.07,137.04,2.06315575]
[1764491088120,0.66,137.07,137.03,5.32315575]
[1764491088320,0.66,137.07,137.04,7.29713952]
[1764491089434,0.66,137.09,137.04,9.36029527]
[1764491090619,0.66,137.09,137.04,30.45064031]
[1764491090921,0.66,137.11,137.06,4.91065199]
[1764491091138,0.66,137.11,137.07,3.24]
[1764491091538,0.66,137.11,137.07,8.15065199]
[1764491091845,0.66,137.11,137.07,3.24]
[1764491092041,0.66,137.11,137.07,8.15065199]
[1764491092222,7.29242904,137.13,137.07,8.15065199]
[1764491092223,0.66,137.13,137.09,4.91065199]
[1764491092422,0.66,137.12,137.09,4.91065199]
[1764491092625,0.66,137.12,137.08,12.20545228]
[1764491092831,4.91065199,137.11,137.07,23.60420961]
[1764491093335,0.66,137.1,137.07,23.60420961]
[1764491093718,0.66,137.1,137.07,28.5148616]
[1764491095376,0.66,137.1,137.07,23.60420961]
[1764491096132,0.66,137.1,137.07,28.5148616]
[1764491097029,18.23016714,137.14,137.08,4.91065199]
[1764491097030,0.68,137.12,137.08,4.91065199]
[1764491097361,0.68,137.11,137.08,4.91065199]
[1764491098657,0.68,137.11,137.08,8.54528186]
[1764491099026,0.68,137.11,137.07,50.38834752]
[1764491099241,0.68,137.11,137.07,41.84306566]
[1764491099945,9.22528186,137.11,137.07,23.60420961]
[1764491100144,7.97342198,137.11,137.07,16.308864]
[1764491100449,0.68,137.1,137.07,16.308864]
[1764491100947,0.68,137.1,137.07,24.85414586]
[1764491101144,0.68,137.11,137.08,8.54528186]
[1764491101444,0.68,137.11,137.09,8.54528186]
[1764491101645,9.22528186,137.11,137.07,7.29542949]
[1764491101845,8.54528186,137.1,137.04,18.24197023]
[1764491102023,0.68,137.1,137.04,81.04197023]
[1764491102219,8.80994492,137.12,137.07,8.54528186]
[1764491102436,0.68,137.09,137.07,62.8]
[1764491102644,0.68,137.09,137.07,70.09551496]
[1764491103323,0.68,137.13,137.08,8.54528186]
[1764491103534,0.68,137.15,137.12,8.54528186]
[1764491104054,0.68,137.15,137.11,8.54528186]
[1764491104647,0.68,137.15,137.12,7.29288214]
[1764491104944,17.35522678,137.14,137.08,8.54528186]
[1764491105355,0.68,137.13,137.08,8.54528186]
[1764491106048,9.22528186,137.13,137.08,7.29501021]
[1764491106552,0.68,137.12,137.08,7.29501021]
[1764491107647,0.68,137.12,137.07,7.29545546]
[1764491107648,8.54528186,137.1,137.07,7.29545546]
[1764491107865,8.54528186,137.1,137.06,18.23900792]
[1764491107866,8.54528186,137.09,137.06,7.29601082]
[1764491108349,0.68,137.08,137.06,7.29601082]
[1764491108837,0.68,137.08,137.05,7.29660707]
[1764491109349,9.22528186,137.08,137.05,7.29660707]
[1764491109551,8.54528186,137.07,137.05,7.29660707]
[1764491109849,9.22528186,137.07,137.05,70.09660707]
[1764491110025,0.68,137.06,137.03,3.24]
[1764491110225,8.54528186,137.05,137.02,0.2]
[1764491110661,8.54528186,137.03,136.96,8.54528186]
[1764491110831,8.54528186,136.99,136.93,8.74528186]
[1764491111038,8.54528186,136.99,136.93,19.28808787]
[1764491111252,0.68,136.99,136.94,8.54528186]
[1764491111445,0.68,136.98,136.93,19.49808787]
[1764491111765,0.68,136.98,136.93,19.28808787]
[1764491111766,9.22528186,136.98,136.93,19.28808787]
[1764491111968,0.68,136.98,136.93,19.28808787]
[1764491112262,0.68,136.97,136.93,19.49808787]
[1764491112443,0.68,136.99,136.94,8.75528186]
[1764491112849,0.68,137.01,136.97,8.54528186]
[1764491113955,0.68,137.01,136.97,15.84609718]
[1764491114156,0.68,137.01,136.98,8.54528186]
[1764491114539,0.68,137.01,136.97,15.84609718]
[1764491114740,0.68,137.01,136.97,7.30081532]
[1764491114981,0.68,137.01,136.98,8.54528186]
[1764491115272,0.68,137.03,136.98,8.54528186]
[1764491115459,0.68,137.02,136.98,8.54528186]
[1764491116665,7.9782168,137.02,136.98,8.54528186]
[1764491117344,0.68,137.01,136.98,8.54528186]
[1764491117539,0.68,137.01,136.98,15.84559944]
[1764491118952,0.68,137.03,136.99,8.54528186]
[1764491119260,0.68,137.02,136.99,8.54528186]
[1764491119447,0.68,137.02,136.98,15.84559944]
[1764491119766,0.68,137.02,136.97,0.21]
[1764491119767,8.54528186,137.01,136.96,8.54528186]
[1764491119975,8.54528186,137.01,136.98,16.308864]
[1764491120139,9.22528186,137.0,136.94,21.4959913]
[1764491120337,9.22528186,137.0,136.95,8.54528186]
[1764491120548,0.68,136.99,136.95,8.54528186]
[1764491120764,0.68,136.99,136.95,7.30188386]
[1764491121067,0.68,136.99,136.95,15.84716572]
[1764491121767,0.68,136.99,136.95,7.30188386]
[1764491122779,0.68,136.99,136.94,34.10374139]
[1764491123768,7.98880306,137.01,136.97,8.54528186]
[1764491123944,7.98880306,137.01,136.95,0.21]
[1764491123945,0.69,137.0,136.96,8.54528186]
[1764491124468,0.69,137.0,136.94,25.55845953]
[1764491124642,0.69,137.0,136.95,8.54528186]
[1764491125391,16.53473208,137.0,136.95,15.84672193]
[1764491125667,16.53473208,137.0,136.95,7.30144007]
[1764491125874,0.72,136.99,136.95,7.30144007]
[1764491126171,9.26528186,136.99,136.95,7.30144007]
[1764491126670,8.54528186,136.97,136.95,62.8]
[1764491126876,16.56561767,136.98,136.94,7.30232813]
[1764491127073,0.72,136.97,136.94,7.30232813]
[1764491128858,16.56634666,136.97,136.93,16.508864]
[1764491129050,16.56634666,136.97,136.93,0.2]
[1764491129252,0.72,136.96,136.93,0.2]
[1764491130275,9.26528186,136.96,136.93,0.2]
[1764491130571,8.54528186,136.94,136.93,0.2]
[1764491130880,15.84775009,136.94,136.93,0.2]
[1764491131176,16.56775009,136.94,136.93,0.2]
[1764491132471,16.83241315,136.94,136.93,0.2]
[1764491132654,25.37769501,136.94,136.93,0.2]
[1764491133255,9.26528186,136.94,136.93,0.2]
[1764491133473,0.72,136.94,136.93,0.2]
[1764491133869,8.02246823,136.94,136.93,0.2]
[1764491135852,7.29999852,136.99,136.93,16.04812421]
[1764491136152,0.72,136.98,136.93,16.25812421]
[1764491136354,9.26528186,136.98,136.93,16.25812421]
[1764491136872,9.26528186,136.98,136.93,16.04812421]
[1764491136873,0.72,136.97,136.93,16.04812421]
[1764491137076,0.72,136.97,136.93,7.50284235]
[1764491138374,0.72,136.97,136.93,16.25812421]
[1764491138559,0.72,136.99,136.94,8.75528186]
[1764491139078,43.36479464,137.02,136.96,8.54528186]
[1764491139079,24.65364004,137.02,136.96,8.54528186]
[1764491139574,0.72,137.01,136.96,8.54528186]
[1764491140176,0.72,137.01,136.97,7.3008688]
[1764491140397,0.72,137.01,136.97,15.84615066]
[1764491140682,8.54528186,137.03,136.98,8.75528186]
[1764491140683,19.80300594,137.03,136.98,8.75528186]
[1764491140877,11.25772408,137.03,136.98,8.75528186]
[1764491141101,0.72,137.02,136.99,8.54528186]
[1764491142167,0.72,137.02,137.0,7.29927007]
[1764491142684,9.26528186,137.02,136.98,7.30018878]
[1764491143062,0.72,137.01,136.98,7.30018878]
[1764491143469,7.29714956,137.04,136.98,15.84547064]
[1764491143666,0.72,137.03,136.98,15.84547064]
[1764491145590,9.26528186,137.03,136.98,15.84547064]
[1764491146176,0.72,137.02,136.98,15.84547064]
[1764491146782,0.72,137.02,136.98,78.64547064]
[1764491148082,0.72,137.02,136.99,15.84493836]
[1764491148395,0.72,137.02,136.99,7.2996565]
[1764491151896,0.72,137.04,136.99,16.05493836]
[1764491152080,0.72,137.03,136.99,16.05493836]
[1764491152282,0.72,137.03,137.01,8.54528186]
[1764491152684,0.72,137.03,137.01,62.8]
[1764491152887,0.72,137.05,137.01,63.01]
[1764491153199,0.72,137.05,137.02,8.54528186]
[1764491154090,0.72,137.05,137.02,15.84317477]
[1764491154293,0.72,137.05,137.02,7.29789291]
[1764491154478,0.72,137.05,137.01,62.8]
[1764491154683,8.54528186,137.04,137.01,62.8]
[1764491154978,9.26528186,137.05,137.01,70.0985671]
[1764491155304,0.72,137.04,137.01,70.0985671]
[1764491156215,16.5625016,137.04,136.99,73.33968691]
[1764491156696,0.67,137.03,136.99,73.33968691]
[1764491157183,0.67,137.03,136.99,82.09496877]
[1764491157777,0.67,137.03,136.99,100.13447603]
[1764491158693,0.67,137.03,136.99,100.34447603]
[1764491159182,0.67,137.05,137.01,8.54528186]
[1764491160192,0.67,137.05,137.02,7.29820464]
[1764491160387,8.54528186,137.06,137.02,7.29820464]
[1764491160594,13.72313078,137.06,137.02,7.29820464]
[1764491160990,8.80994492,137.06,137.02,7.29820464]
[1764491161305,4.91318586,137.03,137.0,7.29897805]
[1764491161514,4.91318586,137.02,137.0,7.29897805]
[1764491161693,4.91318586,137.02,137.0,70.09897805]
[1764491161887,4.91318586,137.03,137.0,70.09897805]
[1764491162308,7.29713952,137.04,137.0,70.09897805]
[1764491162512,0.67,137.02,137.0,70.09897805]
[1764491163789,0.17,137.02,137.0,70.09897805]
[1764491164022,4.91318586,137.01,137.0,62.8]
[1764491164207,4.91318586,137.01,136.96,7.30102948]
[1764491164392,4.91318586,137.0,136.96,8.02102948]
[1764491165216,4.91318586,136.99,136.96,7.30102948]
[1764491165398,4.91318586,137.0,136.96,7.30102948]
[1764491165806,0.67,136.99,136.96,7.30102948]
[1764491166314,4.91318586,136.98,136.95,7.30174962]
[1764491166714,0.67,136.97,136.95,7.30174962]
[1764491166917,4.91318586,136.96,136.93,4.16]
[1764491167100,12.88415818,136.97,136.93,11.46289046]
[1764491167304,0.67,136.96,136.93,10.74289046]
[1764491167997,0.67,136.96,136.93,8.22289046]
[1764491168623,16.11028073,136.98,136.93,8.22289046]
[1764491168808,21.69346659,136.98,136.93,8.22289046]
[1764491168991,0.67,136.97,136.93,8.22289046]
[1764491169610,7.97095246,136.97,136.93,8.22289046]
[1764491170194,0.67,136.96,136.93,8.22289046]
[1764491170501,0.67,136.96,136.93,71.02289046]
[1764491171116,18.24742997,137.01,136.94,5.63318586]
[1764491171416,16.12282202,137.0,136.94,68.43318586]
[1764491171617,12.88282202,137.0,136.95,0.72]
[1764491171814,0.67,136.99,136.95,0.72]
[1764491172396,7.96988543,136.99,136.95,8.0218398]
[1764491172816,0.67,136.99,136.95,8.0218398]
[1764491173002,0.67,136.99,136.96,0.72]
[1764491173207,7.96981368,136.99,136.95,7.5218398]
[1764491174017,12.21262458,137.0,136.96,0.72]
[1764491174196,12.88262458,137.0,136.96,0.72]
[1764491174395,12.88262458,137.0,136.96,8.02138811]
[1764491174613,10.0347928,137.0,136.96,63.52]
[1764491174895,0.67,136.99,136.96,63.52]
[1764491175522,0.67,136.99,136.96,70.82139163]
[1764491176925,10.03519335,136.99,136.96,62.8]
[1764491177223,2.73535408,136.99,136.96,62.8]